Cogmind - Beta 16.1 @@@ ROGUE MODE // 2026.02.28 @ 15:23:47 Player: Megaknight51 Result: Destroyed by S5-7B1(R) with Subdweller Machine Gun Performance ------------- Evolutions (0) 0 Regions Visited (2) 400 Robots Destroyed (14) 70 Value Destroyed (266) 266 Prototype IDs (15) 300 Alien Tech Used (0) 0 Bonus (0) 0 TOTAL SCORE: 1036 Bonus ------- None Cogmind --------- Core Integrity 0/250 Matter 25/300 Energy 100/100 System Corruption 0% Temperature Cool (0) Movement Rolling (200) Ox8 Location -10/Subcaves Parts ------- > --- POWER (1) -------- (None) > --- PROPULSION (2) --- Wheel > --- UTILITY (2) ------ Huge Storage Unit Core Shielding > --- WEAPON (2) ------- Light Cannon Light Cannon > --- INVENTORY (25) --- Meta Core Subdweller Monowheel Small Storage Unit Subdweller Optics Seismic Detector Core Shielding Core Shielding Small Laser Light Cannon Light Cannon Mining Laser Peak State ------------ > --- POWER ------------ Ion Engine > --- PROPULSION ------- Wheel Wheel > --- UTILITY ---------- Huge Storage Unit Seismic Detector > --- WEAPON ----------- Light Cannon Light Cannon > --- INVENTORY -------- Light Ion Engine Wheel Wheel Small Storage Unit Core Shielding Core Shielding Core Shielding Small Laser Light Cannon Mining Laser [Rating: 8] Favorites ----------- Power Ion Engine Engine Ion Engine Propulsion Wheel Wheel Wheel Utility Seismic Detector Device Seismic Detector Storage Huge Storage Unit Protection Core Shielding Weapon Light Cannon Energy Gun Medium Laser Ballistic Cannon Light Cannon Special Weapon Mining Laser Build | -11 -10 -10 ------- Run | Yrd Mat Sub Slots Evolved . | . . . Power . | . . . Propulsion . | . . . Utility . | . . . Weapon . | . . . Parts Attached 17 | 7 5 5 Power 2 | 1 . 1 Engine 2 | 1 . 1 Core . | . . . Reactor . | . . . Propulsion 4 | 2 1 1 Treads . | . . . Leg . | . . . Wheel 4 | 2 1 1 Hover . | . . . Flight . | . . . Utility 4 | 2 1 1 Device 1 | 1 . . Storage 2 | 1 1 . Processor . | . . . Hackware . | . . . Protection 1 | . . 1 Artifact . | . . . Weapon 7 | 2 3 2 Energy Gun 2 | 2 . . Energy Cannon . | . . . Ballistic Gun . | . . . Ballistic Cannon 4 | . 2 2 Launcher . | . . . Special Weapon 1 | . 1 . Impact Weapon . | . . . Slashing Weapon . | . . . Piercing Weapon . | . . . Special Melee Weapon . | . . . Unidentified Prototypes . | . . . Parts Lost 7 | . . 7 Power 2 | . . 2 Propulsion 3 | . . 3 Utility . | . . . Weapon 2 | . . 2 Highest Loss Streak 4 | . . 4 To Critical Strikes . | . . . Average Backups 10 | 2 7 13 Power . | . 1 . Propulsion 1 | . 1 1 Utility 3 | . 1 4 Weapon 4 | 1 2 5 Tool/Special . | . . . Unused Backups 9 | 1 . 8 Power . | . . . Propulsion 2 | 1 . 1 Utility 3 | . . 3 Weapon 3 | . . 3 Tool/Special 1 | . . 1 Average Slot Usage (%) 93 | . 97 89 Engine 9 | . 13 5 Wheel 27 | . 27 26 Device 13 | . 14 12 Storage 14 | . 14 14 Energy Gun 7 | . 16 . Ballistic Cannon 14 | . 6 20 Special Weapon 5 | . 3 7 Peak Build Rating 8 | 7 8 8 Average Rating 7 | 5 7 7 On Entrance 5 | . 7 8 Avg Prop Armor Cover (%) . | . . . Naked Turns . | . . . Heaviest Build 92 | 14 92 92 Greatest Support 20 | 20 20 20 Greatest Overweight (x) 8 | . 8 8 Average Overweight (x) 2 | . 1 4 Largest Inventory Capacity 25 | 8 25 25 Average Capacity 19 | 7 15 25 Most Carried 14 | 6 13 14 Average Carried 10 | 2 7 13 Final Capacity 25 | 8 25 25 Final Carried 13 | 5 13 11 Class Distribution -------------------- 100% | Mutant Dominant Class ---------------- Mutant | -10/Materials Mutant | -10/Subcaves Resources | -11 -10 -10 ----------- Run | Yrd Mat Sub Matter Collected 390 | 270 30 90 Remotely . | . . . Salvage Created 456 | 167 248 41 Parts 27 | 14 12 1 Haulers Intercepted 1 | . 1 . Recyclers Shooed 1 | 1 . . Parts Field Recycled . | . . . Retrieved Matter . | . . . Parts Self-Destructed 15 | . . 15 Prevented . | . . . Parts Restored . | . . . Kills | -11 -10 -10 ------- Run | Yrd Mat Sub Combat Hostiles Destroyed 5 | . 2 3 Guns 2 | . 2 . Cannons 3 | . . 3 Classes Destroyed 6 | 2 3 1 Tunneler 5 | 5 . . Hauler 1 | . 1 . Recycler 2 | 1 1 . Watcher 1 | . 1 . Grunt 2 | . 2 . Subdweller 3 | . . 3 Best Kill Streak 5 | 5 3 1 Combat Bots Only 2 | . 2 1 Max Kills in Single Turn 1 | 1 1 1 Gunslinging . | . . . Exploded . | . . . Melee . | . . . Uniques/NPCs Destroyed . | . . . Combat | -11 -10 -10 -------- Run | Yrd Mat Sub Hostile Shots Fired 54 | . 10 44 Missed 12 | . 1 11 Hits 42 | . 9 33 Projectile 42 | . 9 33 Critical Strikes 3 | . 1 2 Damage Taken 904 | . 120 784 Core 257 | . . 257 Absorbed by Shields . | . . . Redirected to Shielding 26 | . . 26 Core Remaining (%) 100 | 100 . . Volleys Fired 86 | 16 27 43 Largest 2 | 2 2 2 Hottest 100 | 90 100 100 Shots Fired 145 | 32 48 65 Gun 70 | 32 38 . Cannon 50 | . 4 46 Launcher . | . . . Special 25 | . 6 19 Kinetic 50 | . 4 46 Thermal 95 | 32 44 19 Explosive . | . . . Electromagnetic . | . . . Robot Hit Streak 10 | 8 10 10 Robot Miss Streak 4 | 4 2 2 Penetration Max . | . . . Secondary Targets . | . . . Shots Hit Robots 79 | 21 27 31 Core Hits 23 | 7 10 6 Critical Kills . | . . . Critical Parts Destroyed . | . . . Critical Strikes 3 | 1 . 2 Burn 1 | 1 . . Blast 2 | . . 2 Melee Attacks . | . . . Impact . | . . . Slashing . | . . . Piercing . | . . . Sneak Attacks . | . . . Combat Hostiles . | . . . Follow-up Attacks . | . . . Damage Inflicted 1116 | 246 324 546 Guns 570 | 246 324 . Cannons 546 | . . 546 Explosions . | . . . Melee . | . . . Ramming . | . . . Kinetic 546 | . . 546 Thermal 570 | 246 324 . Explosive . | . . . Electromagnetic . | . . . Impact . | . . . Slashing . | . . . Piercing . | . . . Highest Corruption . | . . . Average Corruption . | . . . Corruption Purged . | . . . Corruption Blocked . | . . . Overload Shots . | . . . Overflow Damage . | . . . Projectiles . | . . . Explosions . | . . . Melee . | . . . Knockbacks 8 | . . 8 Impact . | . . . Kinetic 8 | . . 8 Secondary . | . . . Self-Inflicted Damage . | . . . Shots . | . . . Rammed . | . . . Targets Rammed . | . . . Kicked . | . . . Crushed . | . . . Highest Temperature 240 | 240 174 239 Average Temperature 75 | 93 58 131 Received Heat Transfer 454 | . 87 367 Siege Activations . | . . . Martial Activations . | . . . Shielding Activations . | . . . Robots Disrupted . | . . . Combat Hostiles . | . . . Robots Corrupted . | . . . Combat Hostiles . | . . . Parts Fried . | . . . Impact Corruptions . | . . . Robots Melted . | . . . Combat Hostiles . | . . . Parts Melted 2 | 2 . . Heat Transferred 1586 | 731 855 . Parts Sabotaged . | . . . Parts Stolen . | . . . Parts Stripped . | . . . Power Chain Reactions . | . . . Alert | -11 -10 -10 ------- Run | Yrd Mat Sub Maximum Alert Level . | . . . Low Security (%) 100 | 100 100 . Level 1 . | . . . Level 2 . | . . . Level 3 . | . . . Level 4 . | . . . Level 5 . | . . . High Security . | . . . Max Security . | . . . Peak Influence 61 | 10 61 . Initial 3 | . 3 . Average 16 | 1 19 . Influence Increases 214 | 30 184 . Destroy 0b10 Robot/C 40 | . 40 . Destroy 0b10 Robot/NC 45 | 30 15 . Destroy Leader 14 | . 14 . Successful Hack 19 | . 19 . Destroy Structure 6 | . 6 . Lose Combat Pursuer 90 | . 90 . Influence Decreases 214 | 25 189 . Entered New Map 2 | . 2 . Time Decay 208 | 25 183 . Purge Threat 4 | . 4 . Squads Dispatched . | . . . Investigation . | . . . Extermination . | . . . Reinforcement . | . . . Assault . | . . . Garrison . | . . . Intercept . | . . . Searches Triggered . | . . . Construction Impeded . | . . . Haulers Reinforced . | . . . Active Scanning Responses . | . . . Cargo Convoy Interrupts . | . . . Stealth | -11 -10 -10 --------- Run | Yrd Mat Sub Distress Signals . | . . . Communications Jammed . | . . . Distress Signals . | . . . Times Spotted 12 | . 8 4 Peak Tracking Total 4 | . 4 2 Tactical Retreats 2 | . 2 . Traps | -11 -10 -10 ------- Run | Yrd Mat Sub Traps Triggered 3 | . 3 . Indirectly . | . . . Trap Hack Attempts . | . . . Triggered . | . . . Disarmed . | . . . Reprogrammed . | . . . Reused . | . . . Traps Extracted . | . . . Installed . | . . . Triggered . | . . . Machines | -11 -10 -10 ---------- Run | Yrd Mat Sub Machines Disabled 1 | . . 1 Max in Single Turn 1 | . . 1 Machines Repaired . | . . . Machines Dismantled . | . . . Machines Sabotaged . | . . . Overloaded Fab Kills . | . . . Hacking | -11 -10 -10 --------- Run | Yrd Mat Sub Machines Accessed 5 | . 4 1 Terminals 4 | . 4 . Fabricators . | . . . Repair Stations . | . . . Recycling Units . | . . . Scanalyzers . | . . . Garrison Access . | . . . Total Hacks 13 | . 12 1 Successful 7 | . 6 1 Failed 6 | . 6 . Catastrophic . | . . . Database Lockouts . | . . . Manual 11 | . 11 . Terminals 12 | . 12 . Fabricators . | . . . Repair Stations . | . . . Recycling Units . | . . . Scanalyzers . | . . . Garrison Access . | . . . Terminal Hacks 4 | . 3 1 Robot Analysis 1 | . 1 . Prototype ID Bank 1 | . 1 . Unreport Threat 1 | . 1 . Proto ID Catalog 1 | . . 1 Fabricator Hacks . | . . . Repair Station Hacks . | . . . Recycling Unit Hacks . | . . . Scanalyzer . | . . . Garrison Access Hacks . | . . . Unauthorized Hacks 3 | . 3 . Terminals 3 | . 3 . Botnet 2 | . 2 . Operators 1 | . 1 . Fabricators . | . . . Repair Stations . | . . . Recycling Units . | . . . Scanalyzers . | . . . Garrison Access . | . . . Data Cores Recovered . | . . . Used . | . . . Hacking Detections 4 | . 4 . Full Trace Events . | . . . Feedback Events . | . . . Feedback Blocked . | . . . Robot Schematics Acquired . | . . . Robots Built . | . . . Authchips . | . . . Time . | . . . Total Robot Build Rating . | . . . Part Schematics Acquired . | . . . Parts Built . | . . . Authchips . | . . . Time . | . . . Total Part Build Rating . | . . . Part Studies Acquired . | . . . Parts Repaired . | . . . Time . | . . . Parts Recycled . | . . . Recycled Matter . | . . . Retrieved Matter . | . . . Retrieved Components . | . . . Parts Scanalyzed . | . . . Part Schematics Acquired . | . . . Parts Damaged . | . . . Bothacking | -11 -10 -10 ------------ Run | Yrd Mat Sub Used RIF Installer . | . . . Robots Hacked . | . . . Non-combat . | . . . Combat . | . . . Robot Hacks Applied . | . . . Relay Couplers Released . | . . . Fabnet Peak Effective % . | . . . Robots Rewired . | . . . Allies Hacked . | . . . Hacks Repelled . | . . . Allies | -11 -10 -10 -------- Run | Yrd Mat Sub Total Allies . | . . . Largest Group . | . . . Highest-Rated Group . | . . . Highest-Rated Ally . | . . . Total Orders . | . . . Ally Attacks . | . . . Total Damage . | . . . Kills . | . . . Allies Corrupted . | . . . Allies Melted . | . . . Intel | -11 -10 -10 ------- Run | Yrd Mat Sub Active Infowar (turns) 1362 | 42 611 709 Seismic 1362 | 42 611 709 Robot Analysis Total 1 | . 1 . Derelict Logs Recovered 1 | . . 1 Drone Launches . | . . . Drone Recoveries . | . . . Exploration | -11 -10 -10 ------------- Run | Yrd Mat Sub Turns Passed 1540 | 135 615 790 Spaces Moved 918 | 88 403 427 Core 2 | 2 . . Treads . | . . . Legs . | . . . Wheels 916 | 86 403 427 Hover . | . . . Flight . | . . . Fastest Speed 50 | 50 80 140 Average Speed 120 | 79 106 142 Slowest Speed 200 | 80 200 200 Overloaded Moves . | . . . Propulsion Burnouts . | . . . Robots Hopped . | . . . Potential Cave-ins . | . . . Cave-ins Triggered . | . . . Exploration Rate (%) 30 | 4 59 27 Regions Visited 2 Branch Regions 1 Pre-discovered Areas 1 | . . 1 Known Exits Taken . | . . . Unknown Exits Taken 2 | 1 1 . Scrap Searched . | . . . Spaces Dug 5 | . 5 . Terrain Destroyed 6 | . 6 . Melee . | . . . Projectile 6 | . 6 . AOE . | . . . Terrain Rammed . | . . . Walls Destroyed . | . . . Machines Disabled . | . . . Actions | -11 -10 -10 --------- Run | Yrd Mat Sub Total 1146 | 118 525 503 Wait 89 | . 69 20 Move 916 | 87 402 427 Hop . | . . . Pick Up 20 | 7 10 3 Fast Attach 13 | 6 7 . Attach 9 | 1 3 5 Detach 2 | . 2 . Swap 8 | . 3 5 Drop 3 | 1 2 . Fire 86 | 16 27 43 Melee . | . . . Ram . | . . . Kick . | . . . Crush . | . . . Escape Stasis . | . . . Rewire . | . . . Trap . | . . . Miscellaneous . | . . . Route ------- -11/Scrapyard -10/Materials (discovered 3 exits: [*Mat x2] / *Sub) -10/Subcaves (discovered 2 exits: [*Mat] / [*Scr]) History --------- Turn | Location | Event 8 | -11/Scrapyard | Discovered new exit (range 15) 136 | -11/Scrapyard | Entered Materials 316 | -10/Materials | Build established: Mutant 351 | -10/Materials | Discovered new exit (range 16) 591 | -10/Materials | Discovered new exit (range 13) 722 | -10/Materials | Discovered new exit (range 13) 751 | -10/Materials | Entered Subcaves 752 | -10/Subcaves | Approached by a straggling Scientist 834 | -10/Subcaves | Learned Materials security intel 981 | -10/Subcaves | Discovered new exit (range 14) 989 | -10/Subcaves | Ambushed by Subdwellers from Twisted Machinery 1035 | -10/Subcaves | Core integrity fell below 50% 1075 | -10/Subcaves | Lost 3 parts (1p2n) 1347 | -10/Subcaves | Visited 4L-MR0's lab 1370 | -10/Subcaves | Found Meta Core 1456 | -10/Subcaves | Learned location of Zion (-6) 1456 | -10/Subcaves | Met a Zionite searching for "candidates" 1518 | -10/Subcaves | Core integrity fell below 20% 1541 | -10/Subcaves | Destroyed by S5-7B1(R) with Subdweller Machine Gun Last Messages --------------- a trip to Zion?" World map updated: -6/Zion. 01463_ QY-PUV(z) destroyed. 01464_ Subatomizers dissect the Mak. Leg. 01469_ KI-G5S(R) knocked back. 01477_ Subatomizers dissect the Mak. Leg. 01481_ KI-G5S(R) knocked back. 01482_ Lgt. Cannon destroyed. 01487_ S5-7B1(R) knocked back. 01491_ Wheel destroyed. 01499_ Subatomizers dissect the Mak. Leg. 01501_ KI-G5S(R) destroyed. 01509_ Subatomizers dissect the Mak. Leg. 01515_ Acquired 2 matter. 01515_ Lgt. Cannon destroyed. 01519_ Acquired 3 matter. 01524_ Subatomizers dissect the Ion Engine. 01531_ Acquired 16 matter. 01533_ Lgt. Ion Engine destroyed. 01534_ Subatomizers dissect the Ion Engine. Map ----- +----------------------------------------------------+ | ?????????????????????????????????????????????????? | | ?????????????????????????????????????????????????? | | ?????????????????????????????????????????????????? | | ?????????????????????????????????????????????????? | | ?????????????????????????????????????????????????? | | ?????????????????????????????????????????????????? | | ?????????????????????????????????????????????????? | | ?????????????????????????????????????????????????? | | ?????????????????????????????????????????????????? | | ?????????????????????????????????????????????????? | | ?????????????????????????????????????????????????? | | ?????????????????????????????????????????????????? | | ?????????????????????????????????????????????????? | | #####?????????????#####??????????????????????????? | | #??????????### ##??##?????????????????????? | | #????????## ### #?????????????????????? | | ######??# #?????????????????????? | | #### ##????????????????????? | | #????????????????????? | | ???????# % #????????????????????? | | ?##???# #?????????????????????? | | ## ??##&%## ##### #?????????????????????? | | ??#% # ## ###R #?????????????????????? | | ?## ### ##????????????????????? | | ??## % ##?### * #????????????????????? | | ?# #??# ##????# ##@ #????????????????????? | | ??# #?# ##????#### #????????????????????? | | ???# ### = % #???????# ##????????????????????? | | ???# # %##"""#??????" ?????????????????????? | | ??## #%%"#??????" #????????????????????? | | ### # # "#??????" ????????????????????? | | ##### ## #"""" ?????# " #???????????????????? | | #?## ""??#"""##???????????????????? | | ### ### #??? "##????????????????????? | | ## #??### # ???? ##?????????????????????? | | #????? #? ??? ???????????????????????? | | ##????? #?????? ???????????????????????? | | #?????? #?????? ???????????????????????? | | ##?????? ? ?????? #???????????????????????? | | # #?????????????????????????????????????????? | | ## ????????????????????????????????????????? | | ?## ???????????????????????????????????????? | | ??## #??????????????????????????????????????? | | ???## #??????????????????????????????????????? | | ????# #??????????????????????????????????????? | | ????# ??????????????????????????????????????? | | ????# ?????????????????????????????????????? | | ??## ????????????????????????????????????? | | ??# ????????????????????????????????????? | | ??# ## ???????????????????????????????????? | +----------------------------------------------------+ Best States ------------- Heat Dissipation 25 Energy Generation 10 Energy Capacity 250 Matter Stores 300 Matter Capacity 300 Sight Range 16 Terrain Scan Density 10 Core Shielding 20 Evasion (%) 44 Item Schematics ----------------- None Robot Schematics ------------------ None Fabricated ------------ Nothing Repaired ---------- Nothing Studied --------- None Alien Tech Used ----------------- None Achievements -------------- None Challenges ------------ None Game ------ Seed StasisJammingImpeller Manual? 0 Play Time 00:12:23 Cumulative 102.4 hours Start 2026.02.28 @ 15:11:41 End 2026.02.28 @ 15:23:47 Sessions 1 Manual Loads 0 Difficulty Rogue Special Mode None Game No. 210 Rogue 210 Adventurer 0 Explorer 0 Win Type - Total 2 Types 1/0/0/1/0/0/0/0/0/0 Lore% 53 Gallery% 40 Achievement% 40 Wizard Run 0 Options --------- Layout 0 ASCII 0 Keyboard 1 Movement Arrows Keybinds 0 Fullscreen 1 Font 18/Smallcaps Map View 76x50 Zoom Use 45% Tactical HUD 1 Map Filters NONE Filters NONE Steam 1 RUN: 3677d02d-0292-4ddc-a1c0-59d818404083